fUSD/lending_fUSD_20240825
["ID","MTS","AMOUNT","RATE_DAILY","PERIOD"]
[335935812,1724620403588,-150.0,0.00039057,120]
[335935813,1724620403620,-150.0,0.00039073,120]
[335935814,1724620403651,-104593.32720746,0.000391,30]
[335935815,1724620403683,-3404.97835833,0.000391,30]
[335935816,1724620403715,-150.0,0.00039129,120]
[335935817,1724620403746,-8565.31629312,0.000392,30]
[335935818,1724620403777,-150.0,0.0003923,120]
[335935819,1724620403808,-150.0,0.00039371,120]
[335935820,1724620403838,-569.59876802,0.000394,30]
[335935821,1724620403869,-11399.14740217,0.000394,70]
[335935822,1724620403902,-150.0,0.00039405,120]
[335935823,1724620403935,-1000000.000001,0.0003944,70]
[335935824,1724620403969,-150.0,0.00039469,120]
[335935825,1724620404002,-5929.2,0.00039529,74]
[335935826,1724620404036,-151.0,0.00039589,120]
[335935827,1724620404070,-150.0,0.00039632,120]
[335935828,1724620404103,-633.37,0.00039726,120]
[335935829,1724620404136,-9854.66184917,0.000398,34]
[335935830,1724620404168,-1839.48565745,0.000398,120]
[335935831,1724620404202,-175049.92266395,0.0003987,120]
[335935832,1724620404234,-117207.59837838,0.0003988,30]
[335935833,1724620404268,-560.97565389,0.00039898,90]
[335935834,1724620404302,-763.89401116,0.00039898,90]
[335935835,1724620404336,-250.0,0.00039999,30]
[335935836,1724620404371,-50000.0,0.0004,30]
[335935837,1724620404407,-50000.0,0.0004,40]
[335935838,1724620404440,-5000.0,0.0004,30]
[335935839,1724620404478,-477.12749073,0.0004,30]
[335935840,1724620404513,-2936.95912658,0.0004,30]
[335935841,1724620404546,-1483.85979166,0.0004,30]
[335935842,1724620404578,-197.71615831,0.0004,30]
[335935843,1724620404610,-2476.67041987,0.0004,30]
[335935844,1724620404641,-250000.0,0.0004,30]
[335935845,1724620404674,-39400.0,0.0004,30]
[335935846,1724620404709,-5000.0,0.0004,30]
[335935847,1724620404741,-1500.0,0.0004,30]
[335935848,1724620404774,-1000.02479324,0.0004,30]
[335935849,1724620404808,-5106.81931169,0.0004,30]
[335935850,1724620404840,-114573.96,0.0004,30]
[335935851,1724620404871,-10000.0,0.0004,30]
[335935852,1724620404904,-399.10142359,0.0004,30]
[335935853,1724620404937,-194.103305,0.0004,30]
[335935854,1724620404973,-191.75,0.0004,30]
[335935855,1724620405009,-4025.83656336,0.0004,120]
[335935856,1724620405043,-688.74606004,0.0004,120]
[335935857,1724620405076,-433.68465374,0.0004,120]
[335935858,1724620405109,-5000.0,0.0004,120]
[335935859,1724620405144,-5000.0,0.0004,120]
[335935860,1724620405180,-4934.58035398,0.0004,120]
[335935861,1724620405214,-1578.40490703,0.0004,120]
[335935862,1724620405247,-711.12710558,0.0004,120]
[335935863,1724620405280,-254.54421159,0.0004,120]
[335935864,1724620405312,-4925.31836323,0.0004,120]
[335935865,1724620405344,-130388.99458166,0.0004,60]
[335935866,1724620405376,-2000.0,0.0004,120]
[335935867,1724620405409,-1167.56698089,0.0004,120]
[335935868,1724620405441,-2000.0,0.0004,120]
[335935869,1724620405474,-5028.3377039,0.0004,60]
[335935870,1724620405506,-6450.48762831,0.0004,120]
[335935871,1724620405538,-304.29289505,0.0004,120]
[335935872,1724620405570,-1681.70156246,0.0004,120]
[335935873,1724620405602,-297.27990049,0.0004,120]
[335935874,1724620405634,-2428.83013746,0.0004,120]
[335935875,1724620405666,-1352.0,0.0004,120]
[335935876,1724620405698,-4089.0,0.0004,120]
[335935877,1724620405734,-1000.0,0.0004,120]
[335935878,1724620405767,-2541.68721616,0.0004,30]
[335935879,1724620405800,-200.0,0.0004,120]
[335935880,1724620405833,-4553.72827577,0.0004,120]
[335935881,1724620405865,-2242.08960967,0.0004,120]
[335935882,1724620405898,-10902.0,0.0004,60]
[335935883,1724620405931,-412.05467375,0.0004,60]
[335935884,1724620405965,-224.20896097,0.0004,120]
[335935885,1724620405998,-3732.19366744,0.0004,120]
[335935886,1724620406030,-10000.0,0.0004,120]
[335935887,1724620406063,-2430.23,0.0004,120]
[335935888,1724620406096,-154.743694,0.0004,120]
[335935889,1724620406128,-7500.0,0.0004,120]
[335935890,1724620406287,-7500.0,0.0004,120]
[335935891,1724620406320,-7500.0,0.0004,120]
[335935892,1724620406353,-7500.0,0.0004,120]
[335935893,1724620406386,-7500.0,0.00040019,120]
[335935894,1724620406419,-7500.0,0.00040019,120]
[335935895,1724620406451,-7500.0,0.00040019,120]
[335935896,1724620406483,-7500.0,0.00040019,120]
[335935897,1724620406516,-7500.0,0.00040039,120]
[335935898,1724620406547,-7500.0,0.00040039,120]
[335935899,1724620406581,-7500.0,0.00040039,120]
[335935900,1724620406614,-7500.0,0.00040058,120]
[335935901,1724620406646,-7500.0,0.00040058,120]
[335935902,1724620406680,-7500.0,0.00040078,120]
[335935903,1724620406714,-7500.0,0.00040078,120]
[335935904,1724620406748,-735.54748,0.00040088,30]
[335935905,1724620406780,-7500.0,0.00040097,120]
[335935906,1724620406812,-7500.0,0.00040097,120]
[335935907,1724620406845,-7500.0,0.00040116,120]
[335935908,1724620406877,-7500.0,0.00040116,120]
[335935909,1724620406910,-7500.0,0.00040136,120]
[335935910,1724620406943,-7500.0,0.00040155,120]
[335935911,1724620406976,-7500.0,0.00040155,120]
[335935912,1724620407008,-7500.0,0.00040174,120]
[335935913,1724620407040,-7500.0,0.00040174,120]
[335935914,1724620407072,-7500.0,0.00040194,120]
[335935915,1724620407105,-7500.0,0.00040194,120]
[335935916,1724620407138,-4184.0,0.000402,120]
[335935917,1724620407173,-7500.0,0.00040213,120]
[335935918,1724620407207,-7500.0,0.00040213,120]
[335935919,1724620407241,-7500.0,0.00040233,120]
[335935920,1724620407274,-7500.0,0.00040233,120]
[335935921,1724620407307,-10373.59121157,0.00040242,30]
[335935922,1724620407339,-7500.0,0.00040252,120]
[335935923,1724620407372,-4544.34,0.00040252,120]
[335935924,1724620407403,-152.72,0.0004027,120]
[335935925,1724620407435,-7500.0,0.00040271,120]
[335935926,1724620407466,-735.54748,0.00040288,30]
[335935927,1724620407498,-7500.0,0.00040291,120]
[335935928,1724620407530,-3283.48566896,0.000403,41]
[335935929,1724620407564,-7500.0,0.0004031,120]
[335935930,1724620407596,-7500.0,0.00040329,120]
[335935931,1724620407627,-7500.0,0.00040349,120]
[335935932,1724620407658,-1159.96138961,0.0004035,120]
[335935933,1724620407690,-7500.0,0.00040368,120]
[335935934,1724620407734,-7500.0,0.00040388,120]
[335935935,1724620407767,-4000.0,0.000404,120]
[335935936,1724620407799,-7500.0,0.00040407,120]
[335935937,1724620407832,-633.45,0.0004041,120]
[335935938,1724620407866,-7500.0,0.00040426,120]
[335935939,1724620407898,-7500.0,0.00040446,120]
[335935940,1724620407932,-7500.0,0.00040465,120]
[335935941,1724620407972,-735.54748,0.00040488,30]
[335935942,1724620408006,-105422.74018668,0.000405,60]
[335935943,1724620408039,-263.449615,0.000405,30]
[335935944,1724620408072,-151.0,0.00040548,120]
[335935945,1724620408103,-1330.87,0.00040556,120]
[335935946,1724620408134,-735.54748,0.00040688,30]
[335935947,1724620408165,-150.0,0.0004074,35]
[335935948,1724620408196,-578.0,0.00040746,60]
[335935949,1724620408226,-5000.0,0.000408,30]
[335935950,1724620408257,-4108.95101,0.000408,30]
[335935951,1724620408289,-2000.0,0.00040828,120]
[335935952,1724620408320,-109201.2127802,0.0004088,30]
[335935953,1724620408351,-1559.33074299,0.000409,120]
[335935954,1724620408382,-200.0,0.00040999,120]
[335935955,1724620408415,-50000.0,0.00041,31]
[335935956,1724620408447,-123128.60838569,0.00041,30]
[335935957,1724620408479,-1000.0,0.00041,30]
[335935958,1724620408511,-287222.3655212,0.00041,90]
[335935959,1724620408544,-10000.0,0.00041,120]
[335935960,1724620408576,-50000.0,0.00041,90]
[335935961,1724620408608,-1000.0,0.00041,120]
[335935962,1724620408640,-50000.0,0.00041,30]
[335935963,1724620408673,-13278.64,0.00041,120]
[335935964,1724620408709,-20000.0,0.00041,120]
[335935965,1724620408741,-2822.33,0.00041,120]
[335935966,1724620408775,-11409.92945708,0.00041,120]
[335935967,1724620408808,-707.29777954,0.00041,120]
[335935968,1724620408841,-2000.0,0.00041,120]
[335935969,1724620408877,-951.07031996,0.00041,120]
[335935970,1724620408911,-1516.54361801,0.00041,120]
[335935971,1724620408945,-150.216441,0.00041,60]
[335935972,1724620408978,-465.0,0.00041,41]
[335935973,1724620409014,-73871.37027839,0.00041044,120]
[335935974,1724620409047,-935493.0,0.00041069,120]
[335935975,1724620409079,-1430.50627114,0.00041078,120]
[335935976,1724620409113,-735.54748,0.00041088,30]
[335935977,1724620409146,-1235.93607372,0.00041095,30]
[335935978,1724620409180,-1884.56990867,0.00041095,30]
[335935979,1724620409212,-1000.0,0.00041095,120]
[335935980,1724620409247,-525.83199625,0.00041095,120]
[335935981,1724620409280,-10000.0,0.00041095,120]
[335935982,1724620409314,-6471.82876151,0.00041095,120]
[335935983,1724620409348,-4016.46453645,0.00041095,120]
[335935984,1724620409382,-500.0,0.00041095,120]
[335935985,1724620409415,-1681.42,0.00041095,120]
[335935986,1724620409448,-515.35188032,0.00041095,30]
[335935987,1724620409482,-1000.0,0.00041095,120]
[335935988,1724620409515,-1000.0,0.00041095,120]
[335935989,1724620409550,-253.09835037,0.00041095,120]
[335935990,1724620409584,-500.0,0.00041095,120]
[335935991,1724620409619,-500.0,0.00041095,120]
[335935992,1724620409653,-4000.0,0.00041096,30]
[335935993,1724620409685,-16754.27650714,0.000411,120]
[335935994,1724620409832,-152.12,0.00041123,30]
[335935995,1724620409866,-1012.6,0.000412,120]
[335935996,1724620409901,-174.8496842,0.00041211,120]
[335935997,1724620409936,-377.51362739,0.0004123,120]
[335935998,1724620409971,-10095.73838636,0.0004125,30]
[335935999,1724620410007,-735.54748,0.00041288,30]
[335936000,1724620410041,-200.0,0.000413,30]
[335936001,1724620410074,-1000.0,0.000413,30]
[335936002,1724620410106,-1000.0,0.000413,30]
[335936003,1724620410138,-735.54748,0.00041488,30]
[335936004,1724620410171,-151.0,0.00041507,120]
[335936005,1724620410205,-1000.0,0.000416,30]
[335936006,1724620410237,-1000.0,0.000416,30]
[335936007,1724620410270,-1000.0,0.000416,30]
[335936008,1724620410304,-2043.04061142,0.0004168,60]
[335936009,1724620417705,-200.0,0.00027314,120]
[335936010,1724620417773,-200.0,0.0002984,120]
[335936011,1724620417815,-150.0,0.00033332,120]
[335936012,1724620417868,-1000.082606,0.00037418,78]
[335936013,1724620417902,-1000.082606,0.00037418,78]
[335936014,1724620417943,-200.0,0.00039764,120]
[335936015,1724620417983,-500.0,0.00041095,120]
[335936016,1724620418015,-500.0,0.00041095,120]
[335936017,1724620418047,-500.0,0.00041095,120]
[335936018,1724620418078,-500.0,0.00041095,120]
[335936019,1724620418110,-500.0,0.00041095,120]
[335936020,1724620418142,-500.0,0.00041095,120]
[335936021,1724620418174,-500.0,0.00041095,120]
[335936022,1724620418210,-500.0,0.00041095,120]
[335936023,1724620418244,-500.0,0.00041095,120]
[335936024,1724620418280,-500.0,0.00041095,120]
[335936025,1724620418312,-500.0,0.00041095,120]
[335936026,1724620418345,-500.0,0.00041095,120]
[335936027,1724620418376,-500.0,0.00041095,120]
[335936028,1724620418410,-500.0,0.00041095,120]
[335936029,1724620418443,-500.0,0.00041095,120]
[335936030,1724620418475,-500.0,0.00041095,120]
[335936031,1724620418507,-174.79,0.00041095,120]
[335936032,1724620418540,-2956.71893451,0.0004168,60]
[335936033,1724620418573,-500.0,0.0004178,120]
[335936034,1724620418604,-1681.42,0.0004178,120]
[335936035,1724620418636,-3283.48566896,0.000418,60]
[335936036,1724620418667,-753727.9382415,0.000418,90]
[335936037,1724620418699,-2000.0,0.00041831,120]
[335936038,1724620418731,-5544.24394888,0.000419,90]
[335936039,1724620418767,-1000.0,0.00041999,120]
[335936040,1724620418804,-50000.0,0.00042,42]
[335936041,1724620418839,-2000.0,0.00042,120]
[335936042,1724620418874,-315.6272463,0.00042,120]
[335936043,1724620418911,-280.0,0.00042,120]
[335936044,1724620419086,-3275.85662066,0.00042,120]
[335936045,1724620419120,-4000.0,0.00042,120]
[335936046,1724620419151,-3614.84,0.00042,120]
[335936047,1724620419182,-1000.0,0.00042,120]
[335936048,1724620419215,-600.0,0.00042,120]
[335936049,1724620419246,-1247.13868935,0.00042,120]
[335936050,1724620419276,-5410.0406248,0.00042,120]
[335936051,1724620419308,-247.16858702,0.00042,60]
[335936052,1724620419339,-151.0,0.00042,120]
[335936053,1724620419371,-500.0,0.00042465,120]
[335936054,1724620419403,-1681.42,0.00042465,120]
[335936055,1724620419434,-151.0,0.00042466,120]
[335936056,1724620419467,-1000.0,0.000425,120]
[335936057,1724620419498,-169.2119055,0.0004255,120]
[335936058,1724620419531,-2000.0,0.00042663,120]
[335936059,1724620419563,-147462.13282754,0.000428,60]
[335936060,1724620419596,-499999.0,0.000428,60]
[335936061,1724620419628,-27320.51414623,0.000428,60]
[335936062,1724620419661,-10995.70490099,0.000428,60]
[335936063,1724620419693,-201.59429972,0.0004288,120]
[335936064,1724620419724,-23711.66544915,0.000429,60]
[335936065,1724620419755,-251.6265822,0.000429,60]
[335936066,1724620419787,-10000.0,0.00042938,120]
[335936067,1724620419818,-6424.6,0.00042943,94]
[335936068,1724620419851,-1000.0,0.00042999,120]
[335936069,1724620419885,-50000.0,0.00043,43]
[335936070,1724620419918,-500.0,0.00043,120]
[335936071,1724620419953,-2019.0,0.00043,120]
[335936072,1724620419990,-1419.0,0.00043,120]
[335936073,1724620420025,-5000.0,0.00043,120]
[335936074,1724620420059,-5000.0,0.00043,120]
[335936075,1724620420093,-34750.0,0.00043,120]
[335936076,1724620420126,-51216.4954349,0.00043,120]
[335936077,1724620420159,-4000.0,0.00043,120]
[335936078,1724620420193,-1498.06763494,0.00043,120]
[335936079,1724620420225,-1000.0,0.00043,120]
[335936080,1724620420256,-2650.70130084,0.00043,120]
[335936081,1724620420288,-1000.0,0.00043,120]
[335936082,1724620420320,-504.0,0.00043,120]
[335936083,1724620420352,-504.0,0.00043,120]
[335936084,1724620420387,-504.0,0.00043,120]
[335936085,1724620420423,-504.0,0.00043,120]
[335936086,1724620420456,-504.0,0.00043,120]
[335936087,1724620420488,-504.0,0.00043,120]
[335936088,1724620420520,-2865.60246099,0.00043,120]
[335936089,1724620420552,-9107.45655155,0.00043,120]
[335936090,1724620420584,-4484.17921933,0.00043,120]
[335936091,1724620420616,-448.41792193,0.00043,120]
[335936092,1724620420647,-185.12,0.00043014,120]
[335936093,1724620420679,-500.0,0.0004315,120]
[335936094,1724620420711,-1681.42,0.0004315,120]
[335936095,1724620420746,-127530.73765255,0.0004318,120]
[335936096,1724620420783,-3283.48566896,0.000433,60]
[335936097,1724620420816,-202.79035329,0.0004333,120]
[335936098,1724620420850,-200.0,0.00043424,120]
[335936099,1724620420882,-151.0,0.00043425,120]
[335936100,1724620420916,-2000.0,0.00043495,120]
[335936101,1724620420950,-5000.0,0.000435,120]
[335936102,1724620420982,-504.0,0.000435,120]
[335936103,1724620421013,-504.0,0.000435,120]
[335936104,1724620421045,-504.0,0.000435,120]
[335936105,1724620421077,-504.0,0.000435,120]
[335936106,1724620421109,-1096.76035034,0.00043534,120]
[335936107,1724620421141,-200.0,0.000436,120]
[335936108,1724620421173,-36372.03007548,0.0004361,60]
[335936109,1724620421204,-582.11281624,0.000437,120]
[335936110,1724620421237,-9004.96122847,0.000437,120]
[335936111,1724620421268,-1330.87,0.00043718,120]
[335936112,1724620421299,-9410.41187606,0.000438,111]
[335936113,1724620421331,-3739.31,0.00043835,120]
[335936114,1724620421361,-500.0,0.00043835,120]
[335936115,1724620421392,-1681.42,0.00043835,120]
[335936116,1724620421423,-48440.0,0.0004387,120]
[335936117,1724620421454,-10000.0,0.000439,120]
[335936118,1724620421489,-50000.0,0.00044,44]
[335936119,1724620421520,-1410.0,0.00044,120]
[335936120,1724620421552,-1176.63,0.00044,120]
[335936121,1724620421583,-2000.0,0.00044,120]
[335936122,1724620421613,-500.0,0.00044,120]
[335936123,1724620421644,-500.0,0.00044,120]
[335936124,1724620421674,-500.0,0.00044,120]
[335936125,1724620421705,-573.75481798,0.00044,120]
[335936126,1724620421735,-1405.6,0.00044,120]
[335936127,1724620421768,-1000.0,0.00044,120]
[335936128,1724620421798,-460.68184707,0.00044,120]
[335936129,1724620421830,-3564.75602981,0.000442,120]
[335936130,1724620421862,-3564.75602979,0.000442,120]
[335936131,1724620421893,-3564.75602979,0.000442,120]
[335936132,1724620421926,-3564.75602979,0.000442,120]
[335936133,1724620421960,-3564.75602979,0.000442,120]
[335936134,1724620421993,-2000.0,0.00044327,120]
[335936135,1724620422027,-3739.31,0.00044383,120]
[335936136,1724620422060,-151.0,0.00044384,120]
[335936137,1724620422093,-4293.32,0.00044384,120]
[335936138,1724620422126,-16119.6,0.00044384,120]
[335936139,1724620422159,-500.0,0.0004452,120]
[335936140,1724620422194,-1681.42,0.0004452,120]
[335936141,1724620422229,-3283.48566896,0.000448,60]
[335936142,1724620422262,-19247.4697202,0.000448,60]
[335936143,1724620422295,-6083.66136372,0.000448,120]
[335936144,1724620422327,-337593.35535364,0.000448,120]
[335936145,1724620422360,-217.42056719,0.000448,120]
[335936146,1724620422515,-50000.0,0.0004485,120]
[335936147,1724620422549,-166.0,0.00044877,90]
[335936148,1724620422581,-5758.0,0.000449,120]
[335936149,1724620422614,-291.50711395,0.000449,120]
[335936150,1724620422647,-5162.60343704,0.000449,120]
[335936151,1724620422680,-3739.31,0.00044931,120]
[335936152,1724620422713,-1000.0,0.00044999,120]
[335936153,1724620422753,-50000.0,0.00045,45]
[335936154,1724620422787,-150.0,0.00045,85]
[335936155,1724620422820,-588.31153325,0.00045,120]
[335936156,1724620422853,-200.0,0.00045,120]
[335936157,1724620422887,-3000.0,0.00045,120]
[335936158,1724620422921,-150.0,0.00045,120]
[335936159,1724620422954,-1155.98,0.00045,120]
[335936160,1724620422987,-2000.0,0.00045,90]
[335936161,1724620423022,-2000.0,0.00045,90]
[335936162,1724620423057,-2000.0,0.00045,90]
[335936163,1724620423092,-2000.0,0.00045,90]
[335936164,1724620423127,-2000.0,0.00045,90]
[335936165,1724620423162,-11500.0,0.00045,60]
[335936166,1724620423197,-342.47091754,0.00045,90]
[335936167,1724620423233,-931.0,0.00045,120]
[335936168,1724620423267,-3422.71991782,0.00045,120]
[335936169,1724620423302,-175.60982041,0.00045,120]
[335936170,1724620423336,-1580.00240443,0.00045,90]
[335936171,1724620423371,-5000.0,0.00045,90]
[335936172,1724620423404,-3260.83610753,0.00045,120]
[335936173,1724620423437,-446.99479965,0.00045,120]
[335936174,1724620423470,-880.49562226,0.00045,120]
[335936175,1724620423503,-333.75320126,0.00045,120]
[335936176,1724620423536,-3000.0,0.00045,120]
[335936177,1724620423569,-2283909.62671108,0.00045,90]
[335936178,1724620423603,-1000.0,0.00045,120]
[335936179,1724620423636,-1254.89508377,0.00045,120]
[335936180,1724620423669,-21914.59627963,0.00045,60]
[335936181,1724620423703,-201.23740884,0.00045,120]
[335936182,1724620423742,-199.85992972,0.00045,120]
[335936183,1724620423777,-16707.78851814,0.00045,120]
[335936184,1724620423810,-3957.0,0.00045,120]
[335936185,1724620423844,-4638.65727477,0.00045,120]
[335936186,1724620428231,-415.76281688,0.00030303,90]
[335936187,1724620428293,-154.743694,0.0004,120]
[335936188,1724620428330,-248.75930996,0.0004293,120]
[335936189,1724620428366,-361.34272523,0.00045,120]
[335936190,1724620428400,-359.97454192,0.00045,120]
[335936191,1724620428433,-1000.0,0.00045,120]
[335936192,1724620428466,-320.0,0.00045,120]
[335936193,1724620428497,-150.0,0.00045,45]
[335936194,1724620428528,-2000.0,0.00045159,120]
[335936195,1724620428559,-500.0,0.00045205,120]
[335936196,1724620428591,-1681.42,0.00045205,120]
[335936197,1724620428622,-151.0,0.00045342,120]
[335936198,1724620428654,-3739.31,0.00045479,120]
[335936199,1724620428686,-8876.33970771,0.000456,120]
[335936200,1724620428717,-200.0,0.0004585,120]
[335936201,1724620428753,-500.0,0.0004589,120]
[335936202,1724620428786,-1681.42,0.0004589,120]
[335936203,1724620428819,-2000.0,0.00045991,120]
[335936204,1724620428853,-800.0,0.00046,120]
[335936205,1724620428886,-2000.0,0.00046,120]
[335936206,1724620428920,-170.1,0.00046,96]
[335936207,1724620428955,-5000.0,0.00046,120]
[335936208,1724620428989,-3240.28005372,0.00046,120]
[335936209,1724620429022,-4000.0,0.00046,120]
[335936210,1724620429056,-5600.30257741,0.00046,120]
[335936211,1724620429089,-1000.0,0.00046,120]
[335936212,1724620429122,-486.64496589,0.00046,70]
[335936213,1724620429154,-5000.0,0.00046,120]
[335936214,1724620429186,-11384.32068944,0.00046,120]
[335936215,1724620429358,-5605.22402417,0.00046,120]
[335936216,1724620429392,-560.52240242,0.00046,120]
[335936217,1724620429425,-3739.31,0.00046027,120]
[335936218,1724620429458,-3283.48466896,0.000463,60]
[335936219,1724620429502,-151.0,0.00046301,120]
[335936220,1724620429535,-13834.8,0.00046357,113]
[335936221,1724620429567,-28168.79929516,0.000465,120]
[335936222,1724620429599,-1000.0,0.000465,120]
[335936223,1724620429632,-3739.31,0.00046575,120]
[335936224,1724620429664,-500.0,0.00046575,120]
[335936225,1724620429697,-1681.42,0.00046575,120]
[335936226,1724620429731,-4874714.40852713,0.00046575,40]
[335936227,1724620433672,-122535.42626087,0.00046575,40]
[335936228,1724620433981,217.14111041,0.00046575,40]
[335936229,1724620434505,1033.13471685,0.00030303,120]
[335936230,1724620445550,1200.0,0.00046575,120]
[335936231,1724620536695,1050.0,0.0001,2]
[335936232,1724620564869,800.0,0.00026986,120]
[335936233,1724620583870,300.0,0.00027,120]
[335936234,1724620599614,1000.082606,0.00025,79]
[335936235,1724620614407,1000.082606,0.00027,120]
[335936236,1724620683557,800.0,0.00026986,120]
[335936237,1724620743529,800.0,0.00026986,120]
[335936238,1724620803877,400.0,0.00026986,120]
[335936239,1724620805440,346.93,8.219e-05,2]
[335936240,1724620830936,693.68338973,8.219e-05,2]
[335936241,1724620838162,499.97286808,8.219e-05,2]
[335936243,1724620844641,20417.05914824,8.219e-05,2]
[335936244,1724620844818,1270.45559804,8.219e-05,2]
[335936245,1724620849716,3074.67589109,8.219e-05,2]
[335936247,1724620862294,264.31688586,9.962e-05,2]
[335936254,1724620907401,1000.0,9.953e-05,2]
[335936257,1724620929828,1270.45559804,9.962e-05,2]
[335936258,1724620939705,20417.05914824,9.962e-05,2]
[335936259,1724620952721,3074.67589109,9.953e-05,2]
[335936260,1724620997301,507.633439,0.00024995,120]
[335936261,1724621001997,2000.0,0.00026849,120]
[335936262,1724621002459,2000.0,0.00026849,120]
[335936263,1724621006231,6973.39,0.00010019,2]
[335936264,1724621009274,16253.15841419,9.953e-05,2]
[335936265,1724621009931,500.0,0.00024995,120]
[335936266,1724621010610,500.0,0.00025495,120]
[335936267,1724621011159,294.04143,0.00025995,120]
[335936268,1724621015086,500.0,0.00024932,120]
[335936269,1724621024655,20417.05914824,9.953e-05,2]
[335936270,1724621029636,3167.19,9.933e-05,2]
[335936271,1724621037347,1270.45559804,9.953e-05,2]
[335936272,1724621045570,200.0,0.00026859,120]
[335936273,1724621059730,3074.67589109,9.953e-05,2]
[335936274,1724621074727,3074.67589109,9.953e-05,2]
[335936275,1724621090324,500.0,0.00027,120]
[335936276,1724621113671,20417.05914824,9.953e-05,2]
[335936277,1724621114627,500.00964531,0.00027,120]
[335936278,1724621132262,16253.15841419,9.953e-05,2]
[335936279,1724621147262,16253.15841419,9.953e-05,2]
[335936280,1724621148850,1270.45559804,9.953e-05,2]
[335936283,1724621186133,250.0,9.919e-05,2]
[335936284,1724621193765,3205.72250744,9.953e-05,2]
[335936286,1724621210423,249.27,9.914e-05,2]
[335936293,1724621221680,19363.47335235,9.919e-05,2]
[335936295,1724621259851,1262.83546709,9.919e-05,2]
[335936296,1724621282265,16253.15841419,9.919e-05,2]
[335936299,1724621303809,2077.68824439,0.00010009,2]
[335936301,1724621312532,345.47,8.219e-05,2]
[335936319,1724621329734,1011.90616991,0.00010009,2]
[335936324,1724621356572,1725.0,0.00010009,2]
[335936328,1724621392219,1000.0,9.892e-05,2]
[335936332,1724621406274,1791.49132164,0.00010009,2]
[335936333,1724621410890,1296.91763092,0.00010009,2]
[335936334,1724621415026,786.8,9.901e-05,2]
[335936353,1724621431415,-6102.24573392,0.000101,2]
[335936363,1724621431476,-3641.40814063,0.000101,2]
[335936371,1724621431653,-325.89,0.000101,2]
[335936380,1724621431856,-7949.74888125,0.000101,2]
[335936383,1724621431865,-232.52,0.00010407,2]
[335936385,1724621431875,-345.47,0.00010471,2]
[335936387,1724621431885,-230.37604549,0.00010471,2]
[335936389,1724621431894,-155.0,0.00010505,2]
[335936390,1724621431910,-1639.85861342,0.00010566,2]
[335936392,1724621431919,-1215.29843469,0.00010713,2]
[335936394,1724621431928,-500.0,0.00010753,2]
[335936396,1724621431938,-500.0,0.00010761,2]
[335936398,1724621431947,-470.39403409,0.0001077,2]
[335936400,1724621431958,-500.0,0.0001077,2]
[335936402,1724621431967,-500.0,0.00010779,2]
[335936403,1724621431976,-150.0,0.00010779,2]
[335936404,1724621431987,-3484.77906106,0.0001078,2]
[335936405,1724621433052,1000.0,9.888e-05,2]
[335936406,1724621437877,-3232.3,0.0001078,2]
[335936423,1724621438847,-999.79476092,0.0001078,2]
[335936424,1724621438868,-5565.59999992,0.0001078,2]
[335936425,1724621438878,-5178.35223629,0.0001078,2]
[335936432,1724621439611,-2327.20332628,0.0001078,2]
[335936433,1724621439623,-967.47,0.0001078,2]
[335936434,1724621439784,-8340.05740692,0.0001078,2]
[335936471,1724621442550,-10134.37836584,0.0001078,2]
[335936472,1724621442562,-851.90336111,0.0001078,2]